bitfinex/quotes_ETHUSD_20251012
["timestamp","ask_amount","ask_price","bid_price","bid_amount"]
[1760289039438,2.41796299,4135.8,4134.7,2.41855272]
[1760289039642,0.0992,4136.1,4133.3,0.14432]
[1760289039643,2.41787056,4135.9,4133.8,0.4742]
[1760289039838,2.72735778,4137.1,4133.9,0.6336]
[1760289040038,0.61031763,4136.8,4134.1,2.41890617]
[1760289040241,2.4177534,4136.1,4134.2,0.227]
[1760289040454,2.41801076,4135.7,4134.3,2.41878915]
[1760289040657,2.41791189,4135.8,4134.0,0.4742]
[1760289040878,2.41832997,4135.1,4134.0,0.4742]
[1760289041177,0.6336,4134.8,4133.0,0.002]
[1760289041328,2.41893461,4134.1,4133.0,0.002]
[1760289041533,2.019,4134.7,4133.0,0.002]
[1760289041747,2.41901817,4134.0,4133.0,0.002]
[1760289042045,2.41861365,4134.6,4133.0,0.002]
[1760289042247,1.92,4134.4,4133.0,0.4762]
[1760289042433,2.019,4135.2,4133.5,2.41920341]
[1760289042764,2.019,4135.2,4133.0,0.4762]
[1760289042765,2.41832303,4135.1,4134.0,2.41890955]
[1760289043066,0.099,4135.7,4134.2,2.41880044]
[1760289043239,0.099,4135.7,4133.4,0.4742]
[1760289043435,0.099,4136.3,4134.9,2.41839072]
[1760289043637,0.2134,4136.8,4134.9,0.24183907]
[1760289043949,2.41785315,4136.0,4134.9,0.24183907]
[1760289044283,2.41785861,4135.9,4135.0,2.41832553]
[1760289044574,2.4176821,4136.2,4134.4,0.4407]
[1760289044575,2.41797223,4135.7,4134.4,0.4407]
[1760289044775,2.41773651,4136.1,4134.9,2.41843687]
[1760289044962,2.41798918,4135.7,4134.4,0.4407]
[1760289045166,13.02613662,4138.1,4134.4,0.4407]
[1760289045347,2.41778745,4136.1,4135.3,2.41815796]
[1760289045554,2.41767091,4136.3,4135.4,2.41812985]
[1760289045763,0.3124,4136.8,4134.9,0.4407]
[1760289045951,2.41762381,4136.3,4135.4,2.41813992]
[1760289046166,2.41785937,4135.9,4134.1,0.4407]
[1760289046453,2.4182905,4135.2,4134.2,2.41879122]
[1760289046779,2.41838729,4135.0,4134.1,2.41885412]
[1760289046982,2.41838729,4135.0,4133.3,0.4407]
[1760289046983,1.92,4135.8,4133.7,0.4407]
[1760289047186,0.099,4136.0,4134.4,2.4186791]
[1760289047187,2.4181479,4135.4,4134.4,2.4186791]
[1760289047360,2.41793196,4135.8,4134.2,3.08014042]
[1760289047694,2.41785525,4135.9,4135.1,2.41830648]
[1760289047859,2.41785525,4135.9,4134.2,3.08014042]
[1760289047860,0.099,4136.0,4134.2,0.6613]
[1760289048059,1.92,4135.9,4133.3,0.6336]
[1760289048257,2.5536,4135.6,4133.0,0.002]
[1760289048594,1.92,4135.5,4133.9,2.41897156]
[1760289048804,1.92,4135.5,4133.0,0.002]
[1760289048805,0.291,4135.8,4133.7,0.4352]
[1760289049097,1.92,4135.7,4134.7,2.41854466]
[1760289049279,0.6336,4136.6,4134.8,2.41849666]
[1760289049280,2.41784169,4136.0,4134.8,2.41849666]
[1760289049482,2.41814059,4135.5,4135.1,0.1208]
[1760289049698,2.53876436,4135.8,4135.1,0.1208]
[1760289049699,2.41804064,4135.6,4135.1,0.1208]
[1760289049906,0.1208,4135.8,4135.1,0.1208]
[1760289049907,2.0408,4135.8,4135.1,0.1208]
[1760289050200,2.41826272,4135.2,4134.3,2.41873519]
[1760289050356,0.1208,4135.5,4135.3,0.002]
[1760289050557,0.1208,4135.9,4135.3,0.002]
[1760289050981,0.1208,4136.3,4135.6,0.1208]
[1760289051181,0.1208,4136.7,4135.8,0.1208]
[1760289051384,2.53818773,4136.7,4136.1,0.1208]
[1760289051596,2.41745315,4136.6,4136.1,0.1208]
[1760289051795,0.1208,4136.7,4136.1,0.1208]
[1760289052097,1.92,4136.6,4136.1,0.1208]
[1760289052596,2.41750435,4136.5,4136.1,0.1208]
[1760289052796,1.92,4136.6,4136.1,0.1208]
[1760289053363,2.41757063,4136.4,4136.1,0.1208]
[1760289053595,2.41751596,4136.5,4136.1,0.1208]
[1760289054121,2.41799897,4135.7,4135.5,0.1208]
[1760289054318,0.1208,4136.2,4135.5,0.1208]
[1760289054503,2.53848525,4136.2,4135.5,0.1208]
[1760289054690,2.41791598,4135.8,4135.5,0.1208]
[1760289055123,2.41798464,4135.7,4135.5,0.1208]
[1760289055290,2.41793073,4135.8,4135.5,0.1208]
[1760289055926,0.1208,4136.2,4135.5,0.1208]
[1760289056094,0.099,4137.0,4135.9,2.41785291]
[1760289056297,0.1208,4136.8,4136.1,0.1208]
[1760289056602,2.41763668,4136.3,4136.1,0.1208]
[1760289056931,0.099,4136.3,4135.3,0.002]
[1760289057097,2.41803075,4135.6,4135.3,0.002]
[1760289057413,2.41797841,4135.7,4135.3,0.002]
[1760289057629,0.3123,4135.9,4135.3,0.002]
[1760289057933,4.33808729,4135.5,4135.3,0.002]
[1760289058247,2.41814576,4135.4,4135.3,0.002]
[1760289058428,2.51824576,4135.4,4135.3,0.002]
[1760289058624,5.07184576,4135.4,4135.3,0.002]
[1760289058826,3.05197968,4135.0,4134.9,1e-08]
[1760289059025,5.46917765,4135.0,4134.9,1e-08]
[1760289059346,5.56927765,4135.0,4134.9,1e-08]
[1760289059926,9.65286265,4135.0,4134.9,1e-08]
[1760289060440,5.56927765,4135.0,4134.9,1e-08]
[1760289061148,9.44305765,4135.0,4134.9,1e-08]
[1760289061649,9.81362839,4135.0,4134.9,1e-08]
[1760289061948,9.44305765,4135.0,4134.9,1e-08]
[1760289062347,4.93567765,4135.0,4134.9,1e-08]
[1760289062549,2.51847968,4135.0,4134.9,1e-08]
[1760289063654,0.1001,4135.6,4134.9,1e-08]
[1760289064126,15.1955782,4137.0,4134.9,1e-08]
[1760289064127,0.1001,4136.4,4134.9,1e-08]
[1760289064327,2.41780007,4136.0,4135.0,2.41837194]
[1760289064527,2.41790135,4135.9,4135.1,2.41830863]
[1760289064822,2.62865905,4136.5,4134.9,1e-08]
[1760289064823,2.41814451,4135.5,4134.9,1e-08]
[1760289065047,2.4181639,4135.4,4134.9,1e-08]
[1760289065250,2.41821773,4135.3,4134.9,1e-08]
[1760289065760,2.51904018,4136.0,4134.9,1e-08]
[1760289065761,0.1012,4136.0,4134.9,1e-08]
[1760289065953,2.41815606,4135.4,4134.9,1e-08]
[1760289066265,2.41808965,4135.5,4134.9,1e-08]
[1760289066556,2.41799723,4135.7,4134.9,1e-08]
[1760289066763,2.41809856,4135.5,4134.9,1e-08]
[1760289066941,2.53882882,4135.6,4135.0,0.1208]
[1760289067136,0.1208,4135.6,4135.0,0.1208]
[1760289067336,2.53883813,4135.6,4135.0,0.1208]
[1760289067537,0.1208,4135.6,4135.0,0.1208]
[1760289068036,0.1208,4135.6,4134.9,1e-08]
[1760289068037,2.41775645,4136.1,4135.3,2.41815376]
[1760289068337,4.337738,4136.1,4135.5,0.1208]
[1760289068663,0.1208,4136.2,4135.5,0.1208]
[1760289068862,0.1023,4136.9,4135.5,2.4180781]
[1760289069062,1.92,4136.4,4135.8,0.1208]
[1760289069263,2.41769478,4136.2,4135.8,0.1208]
[1760289069432,4.33761285,4136.4,4135.5,2.41803841]
[1760289069632,2.62722508,4137.0,4135.0,0.4352]
[1760289069633,1.92,4136.9,4135.0,0.4352]
[1760289069828,1.92,4136.8,4135.5,2.41804769]
[1760289070055,2.41763063,4136.3,4135.5,2.41804769]
[1760289070269,0.1023,4137.1,4135.1,0.28555947]
[1760289070469,15.31555786,4138.2,4134.9,1e-08]
[1760289070470,0.1034,4137.4,4135.6,0.4352]
[1760289070631,2.4176617,4136.3,4135.0,0.4352]
[1760289070962,1.92,4136.0,4134.9,1e-08]
[1760289071161,5.12970651,4136.1,4134.9,1e-08]
[1760289071162,4.33773651,4136.1,4134.9,1e-08]
[1760289071371,2.41837968,4135.0,4134.9,1e-08]
[1760289071576,2.41797151,4135.7,4134.9,1e-08]
[1760289071577,1.92,4135.8,4134.9,1e-08]
[1760289071731,0.2068,4136.7,4134.9,2.85360359]
[1760289071932,0.2068,4136.7,4134.9,0.43520001]
[1760289072172,0.2068,4136.7,4135.0,2.41837968]
[1760289072400,2.41760468,4136.4,4135.6,2.41799478]
[1760289072582,0.1055,4136.9,4135.1,2.4183212]
[1760289072734,2.41749226,4136.6,4135.3,0.4352]
[1760289072943,0.1055,4136.9,4135.3,0.4352]
[1760289073182,2.41722201,4137.0,4136.0,2.4177827]
[1760289073479,0.2058,4137.1,4135.3,0.4352]
[1760289073480,2.41744745,4136.6,4135.3,0.4352]
[1760289073682,2.41744745,4136.6,4135.9,2.41783978]
[1760289073842,2.41768488,4136.2,4135.4,2.41812739]
[1760289074042,2.41761003,4136.4,4135.5,2.41803882]
[1760289074247,2.41761003,4136.4,4134.9,1e-08]
[1760289074248,2.417518,4136.5,4135.7,2.41795939]
[1760289074444,2.41758119,4136.4,4135.7,2.41795939]
[1760289074645,2.41768098,4136.2,4135.5,2.41803371]
[1760289074955,1.92,4137.2,4135.3,0.4352]
[1760289075268,2.41733401,4136.8,4136.1,2.41771515]
[1760289075477,17.91514106,4138.4,4135.8,0.4352]
[1760289075478,2.41674232,4137.9,4135.8,0.4352]
[1760289075787,2.41715509,4137.1,4136.4,2.41753468]
[1760289075941,2.41718892,4137.1,4136.1,0.2266]
[1760289076156,2.41728996,4136.9,4135.3,0.4352]
[1760289076356,2.41715211,4137.1,4136.2,2.41766689]
[1760289076688,2.41715211,4137.1,4136.1,2.41772886]
[1760289076689,2.41727554,4136.9,4136.1,2.41772886]
[1760289076987,0.1075,4137.3,4135.4,2.41814576]
[1760289076988,0.1075,4136.8,4135.4,2.41814576]
[1760289077186,2.41738583,4136.7,4135.3,0.4352]
[1760289077375,2.52453358,4137.4,4135.4,0.28534708]
[1760289077690,0.1834,4138.4,4135.6,2.41802882]
[1760289078010,2.41670764,4137.9,4137.1,2.41712365]
[1760289078293,2.41670734,4137.9,4137.1,2.41710284]
[1760289078657,1.92,4138.2,4136.5,0.4695]
[1760289078874,2.41672896,4137.9,4137.1,2.41713671]
[1760289079275,2.41674784,4137.8,4137.1,2.41713671]
[1760289079591,1.92,4137.9,4136.9,2.41721564]
[1760289079788,1.92,4137.9,4136.1,2.64103651]
[1760289079789,1.92,4137.9,4137.3,0.1208]
[1760289079954,0.1208,4138.5,4138.0,2.4165882]
[1760289080155,0.003,4139.3,4138.1,0.6928]
[1760289080358,0.003,4139.3,4138.4,2.53719218]
[1760289080359,0.123,4139.3,4138.4,2.53719218]
[1760289080600,0.003,4139.3,4138.7,2.41620979]
[1760289080798,0.003,4139.3,4139.2,2.53592578]
[1760289081171,0.003,4139.3,4139.2,3.00542578]
[1760289081798,0.003,4139.3,4139.2,0.12]
[1760289082156,0.003,4139.3,4139.2,3.00542578]
[1760289082393,0.003,4139.3,4139.2,0.12]
[1760289082721,0.003,4139.3,4138.4,0.4695]
[1760289082989,0.003,4139.3,4139.2,0.4695]
[1760289083164,0.003,4139.3,4139.2,2.88542578]
[1760289083992,0.003,4139.3,4139.2,3.41557001]
[1760289084982,1e-08,4139.3,4139.2,4.04917001]
[1760289085201,1e-08,4139.7,4139.2,0.99964423]
[1760289085397,1e-08,4139.7,4139.3,0.4695]
[1760289085774,1e-08,4139.7,4139.5,2.41569896]
[1760289085971,1e-08,4139.7,4139.4,0.4695]
[1760289086282,1e-08,4139.7,4139.2,2.4159023]
[1760289086468,1e-08,4139.7,4138.9,0.4695]
[1760289086666,1e-08,4139.7,4139.4,2.41575815]
[1760289086873,1e-08,4139.7,4139.0,2.41604252]
[1760289087178,1e-08,4139.7,4139.1,0.75805425]
[1760289087376,1e-08,4139.7,4139.1,0.4695]
[1760289087573,0.001,4139.3,4139.2,2.41592578]
[1760289087775,0.123,4141.0,4138.7,0.4695]
[1760289087776,2.41493395,4140.9,4138.7,0.4695]
[1760289088104,2.41540059,4140.1,4138.7,0.4695]
[1760289088273,2.41567906,4139.7,4138.8,2.41610484]
[1760289088473,0.001,4140.2,4138.2,0.4695]
[1760289088671,0.001,4140.2,4138.2,2.88600796]
[1760289088672,2.41591513,4139.3,4138.2,2.88600796]
[1760289088906,2.41598591,4139.1,4138.2,0.4695]
[1760289089114,2.41601959,4139.1,4138.2,0.4695]
[1760289089614,0.001,4140.2,4138.2,0.4695]
[1760289089906,2.41540059,4140.1,4139.0,2.41600419]
[1760289090107,1.92,4140.0,4138.6,2.88577603]
[1760289090313,2.41582404,4139.4,4138.6,0.4695]
[1760289090479,0.001,4140.2,4138.6,0.99972339]
[1760289090480,2.41575984,4139.5,4138.6,0.99972339]
[1760289090674,0.001,4140.2,4137.8,0.2233]
[1760289090675,0.122,4140.1,4137.8,0.2233]
[1760289090920,2.41577736,4139.5,4138.7,2.41616145]
[1760289091098,2.41577409,4139.5,4138.7,2.41616145]
[1760289091306,2.53744774,4140.1,4138.9,2.41608229]
[1760289091513,1.92,4140.0,4138.6,0.4695]
[1760289091701,2.41587765,4139.3,4138.6,2.88576198]
[1760289091902,1.92,4140.0,4138.0,2.88611228]
[1760289092102,0.122,4140.1,4138.8,2.41615546]
[1760289092103,2.41573785,4139.6,4138.8,2.41615546]
[1760289092297,0.001,4140.2,4138.6,0.4695]
[1760289092492,2.41559817,4139.8,4139.4,0.12]
[1760289092692,0.12,4140.1,4139.4,0.12]
[1760289092890,0.001,4140.2,4137.2,0.968]
[1760289092891,0.001,4140.2,4140.0,0.12]
[1760289093096,0.001,4140.2,4139.9,2.41546592]
[1760289093298,0.001,4140.2,4140.0,0.12]
[1760289093493,0.001,4140.2,4140.1,2.41540059]
[1760289093821,0.001,4140.2,4140.0,2.53544725]
[1760289094027,0.001,4140.2,4140.1,3.10820059]
[1760289095618,0.001,4140.2,4140.1,3.08820059]
[1760289095924,0.001,4140.2,4140.1,5.00820059]
[1760289096614,0.001,4140.2,4140.1,5.64180059]
[1760289099621,0.001,4140.2,4140.1,9.25434159]
[1760289099822,0.001,4141.0,4140.9,3.04853395]
[1760289100122,0.001,4141.0,4140.9,20.16411215]
[1760289100422,0.001,4141.0,4140.9,20.63361215]
[1760289100629,0.001,4141.0,4140.9,5.43803395]
[1760289101009,0.001,4141.0,4140.9,4.80443395]
[1760289101326,0.001,4141.0,4140.9,5.52637892]
[1760289102223,0.001,4141.0,4140.9,3.60637892]
[1760289102449,0.001,4141.0,4140.9,4.23997892]
[1760289104108,0.001,4141.0,4140.9,4.35997892]
[1760289106094,0.001,4141.0,4140.9,4.23997892]
[1760289106839,0.001,4141.0,4140.9,2.88443395]
[1760289108299,0.001,4141.0,4140.2,0.4523]
[1760289108499,0.001,4141.0,4140.3,2.41528391]
[1760289108704,0.001,4141.0,4140.9,2.41493395]
[1760289109131,0.001,4141.0,4140.9,2.86723395]
[1760289109427,0.001,4141.0,4140.9,3.39545856]
[1760289111928,0.001,4141.0,4140.9,5.94905856]
[1760289112508,0.1012,4144.4,4143.2,2.41358709]
[1760289112706,2.51410149,4144.4,4143.3,2.41348626]
[1760289112906,2.41295273,4144.3,4143.3,2.41352247]
[1760289113131,2.4130732,4144.1,4143.3,2.41352247]
[1760289113530,2.4130732,4144.1,4143.0,2.41367779]
[1760289113531,2.41314259,4144.0,4143.1,2.41359876]
[1760289113734,2.41331861,4143.7,4142.8,2.41377318]
[1760289113937,2.61410302,4143.9,4142.8,2.41380565]
[1760289114237,2.41338155,4143.6,4142.8,2.41380565]
[1760289114542,2.61410302,4143.9,4142.1,0.966]
[1760289114543,0.2009,4143.9,4142.1,0.966]
[1760289114747,0.1042,4143.8,4142.1,0.966]
[1760289114919,0.1042,4143.7,4142.1,0.966]
[1760289115124,2.41378251,4142.9,4142.1,3.38022365]
[1760289115742,2.41377563,4142.9,4142.1,3.38022365]
[1760289115948,1.92,4143.6,4142.1,1.54546071]
[1760289116241,2.4135351,4143.3,4142.7,0.12]
[1760289116827,2.41359335,4143.2,4142.7,0.12]
[1760289117025,0.2242,4143.4,4142.7,0.12]
[1760289117026,2.41354766,4143.3,4142.7,0.12]
[1760289117459,0.12,4143.4,4142.7,0.12]
[1760289117609,2.53349756,4143.4,4142.7,0.12]
[1760289117814,0.12,4143.4,4142.7,0.12]
[1760289118041,0.1042,4143.3,4142.7,0.12]
[1760289118236,2.53370265,4143.1,4142.4,0.12]
[1760289118443,0.12,4143.1,4142.4,0.12]
[1760289118615,2.53366119,4143.1,4142.4,0.12]
[1760289118815,0.12,4143.1,4142.4,0.12]
[1760289119217,2.53366808,4143.1,4142.4,0.12]
[1760289119965,2.53367202,4143.1,4142.4,0.12]
[1760289120341,0.12,4143.6,4142.9,0.12]
[1760289120753,0.099,4144.3,4143.5,2.41341279]
[1760289120954,0.3009,4145.3,4143.6,2.41336036]
[1760289121159,2.41265424,4144.9,4144.0,2.41308192]
[1760289121365,2.41266478,4144.8,4144.0,2.4131117]
[1760289121567,2.41258554,4145.0,4143.5,0.24134128]
[1760289121773,2.41258554,4145.0,4144.1,2.41302258]
[1760289122088,2.41273144,4144.7,4143.9,2.41317522]
[1760289122236,2.4123195,4145.4,4144.5,2.41278855]
[1760289122436,0.003,4145.7,4144.6,0.4523]
[1760289122676,0.003,4145.7,4145.2,2.41242549]
[1760289122831,0.003,4145.7,4144.6,0.4523]
[1760289123036,0.003,4145.7,4145.4,2.41230988]
[1760289123280,0.003,4145.7,4145.2,2.412376]
[1760289123432,0.003,4145.7,4145.6,2.41219606]
[1760289123636,0.003,4145.7,4144.9,0.4523]
[1760289124167,0.003,4145.7,4145.3,2.41231923]
[1760289124365,0.003,4145.7,4145.6,2.41219606]
[1760289124777,0.003,4145.7,4145.3,2.86462449]
[1760289124945,0.003,4145.7,4145.5,2.41225425]
[1760289125148,0.003,4145.7,4145.6,2.41219606]
[1760289125351,0.003,4145.7,4145.6,2.86449606]
[1760289126135,0.003,4145.7,4145.6,0.4523]
[1760289126346,0.003,4145.7,4138.5,44.0731]
[1760289126347,2.41231215,4145.5,4144.4,2.4128945]
[1760289126548,0.003,4145.7,4144.6,2.41277807]
[1760289126866,0.003,4145.7,4144.5,0.76220945]
[1760289127070,0.003,4145.7,4144.3,0.2339]
[1760289127233,0.003,4145.7,4145.5,2.41225291]
[1760289127434,0.003,4145.7,4144.8,2.41266164]
[1760289127667,0.003,4145.7,4145.5,2.41220446]
[1760289127851,0.003,4145.7,4144.3,2.64681965]
[1760289127852,0.003,4145.7,4144.3,0.2339]
[1760289128167,2.41514222,4145.7,4144.8,2.41261781]
[1760289128467,2.41514222,4145.7,4145.0,2.41254523]
[1760289128468,0.003,4145.7,4145.0,2.41254523]
[1760289128666,0.003,4145.7,4144.9,0.4523]
[1760289129473,0.003,4145.7,4144.3,0.2339]
[1760289129474,0.101,4145.6,4144.1,0.6862]
[1760289129850,0.101,4145.6,4143.6,2.413355]
[1760289130044,0.101,4145.6,4143.5,0.69364128]
[1760289130045,0.101,4145.5,4143.5,0.69364128]
[1760289130240,0.101,4145.4,4142.7,0.966]
[1760289130443,2.41277807,4144.6,4142.7,0.966]
[1760289130641,0.12,4144.0,4143.3,0.12]
[1760289131045,0.2051,4143.9,4142.7,0.966]
[1760289131342,17.45807845,4143.6,4142.7,0.966]
[1760289131542,2.41169154,4146.5,4142.9,2.41376813]
[1760289131743,0.2083,4145.9,4143.0,0.4523]
[1760289132077,0.099,4145.6,4143.1,2.41365161]
[1760289132282,1.92,4145.3,4143.2,0.4523]
[1760289132443,2.60448307,4145.2,4143.8,2.41323973]
[1760289132843,2.41249461,4145.1,4143.8,2.41323973]
[1760289133066,2.41249461,4145.1,4144.0,2.41307376]
[1760289133266,2.41249461,4145.1,4144.1,2.41305078]
[1760289133489,2.6044306,4145.2,4143.2,0.4523]
[1760289133775,0.099,4145.6,4143.5,2.4134186]
[1760289133975,0.099,4145.5,4142.8,0.2339]
[1760289134163,0.003,4145.7,4144.5,2.41279202]
[1760289134164,2.41514012,4145.7,4144.5,2.41279202]
[1760289134370,2.41514012,4145.7,4144.6,0.4523]
[1760289134371,0.003,4145.7,4144.6,0.4523]
[1760289134744,0.003,4145.7,4144.9,17.95066511]
[1760289134950,0.003,4145.7,4145.6,2.41219606]
[1760289135485,0.003,4145.7,4145.6,2.86449606]
[1760289137192,0.2174,4148.6,4145.6,0.4523]
[1760289137350,0.3176,4148.6,4145.9,15.53807845]
[1760289137547,0.3176,4148.6,4146.0,1.99940785]
[1760289137746,0.3176,4148.6,4147.1,2.4113089]
[1760289137966,2.4108107,4148.0,4146.2,2.41184699]
[1760289138167,0.3176,4148.6,4146.1,0.4456]
[1760289138379,2.0202,4148.5,4147.1,2.41127517]
[1760289138683,2.41063699,4148.3,4147.1,2.41127517]
[1760289139187,0.22376,4148.4,4146.1,2.85749882]
[1760289139389,0.6336,4147.9,4145.2,0.4456]
[1760289139587,0.2174,4148.6,4142.9,0.966]
[1760289139588,1.92,4147.7,4145.1,0.4456]
[1760289139787,0.1003,4147.6,4145.1,0.4456]
[1760289139959,0.2174,4148.6,4145.1,0.4456]
[1760289139960,0.1003,4148.2,4147.2,2.41124035]
[1760289140294,0.2172,4149.2,4147.3,0.4456]
[1760289140455,0.2172,4149.2,4147.5,2.41109101]
[1760289140652,0.003,4149.7,4147.7,2.41097475]
[1760289140886,2.40994296,4149.5,4147.8,2.41091663]
[1760289141097,0.62388026,4149.5,4148.8,0.12]
[1760289141304,0.003,4149.7,4148.1,0.6753]
[1760289141465,0.12,4149.6,4148.9,2.53026393]
[1760289141672,2.5298845,4149.6,4148.9,0.12]
[1760289141857,0.12,4149.6,4148.9,0.12]
[1760289142264,2.4099324,4149.5,4148.9,0.12]
[1760289142493,0.5157599,4149.5,4148.9,0.12]
[1760289142695,0.12,4149.0,4148.4,0.12]
[1760289142861,2.41038567,4148.8,4148.4,0.12]
[1760289143059,0.1029,4148.7,4146.9,0.2297]
[1760289143255,0.12,4148.6,4147.9,0.12]
[1760289143491,0.12,4149.4,4148.7,0.12]
[1760289143828,2.41004514,4149.3,4148.7,0.12]
[1760289144301,2.52999331,4149.4,4148.7,0.12]
[1760289144511,2.41005587,4149.3,4148.7,0.12]
[1760289144713,2.41019045,4149.1,4148.7,0.12]
[1760289145789,2.41009297,4149.3,4148.0,2.41080038]
[1760289146104,2.41061271,4148.4,4147.1,0.75426797]
[1760289146403,2.41045171,4148.6,4147.8,2.41090522]
[1760289146704,2.41039464,4148.7,4147.6,2.4109757]
[1760289146903,2.41286015,4149.7,4147.3,2.41116293]
[1760289146904,2.41079623,4148.1,4147.3,2.41116293]
[1760289147206,2.41068042,4148.3,4146.7,0.4456]
[1760289147406,2.41068042,4148.3,4146.3,15.53807845]
[1760289147407,2.41057014,4148.4,4147.6,2.4110313]
[1760289148009,2.41057014,4148.4,4147.3,2.41120678]
[1760289148010,2.41080243,4148.0,4146.5,0.4456]
[1760289148182,0.1029,4148.0,4146.5,0.4456]
[1760289148383,0.1029,4148.0,4145.9,2.64167103]
[1760289148384,2.41091663,4147.8,4146.3,2.41174269]
[1760289148602,2.41091663,4147.8,4146.0,0.4456]
[1760289148603,2.41125964,4147.3,4146.5,2.41166974]
[1760289148807,2.41125964,4147.3,4146.0,0.4456]
[1760289148808,1.92,4148.1,4146.0,2.41196333]
[1760289149011,0.103,4148.9,4146.7,2.41155617]
[1760289149198,0.103,4148.9,4147.7,2.4109298]
[1760289149383,2.41061119,4148.4,4147.5,2.41108863]
[1760289149894,2.41061119,4148.4,4146.7,0.4456]
[1760289149895,2.41083303,4148.0,4146.7,0.4456]
[1760289150077,2.41062603,4148.3,4147.1,2.41128037]
[1760289150278,0.1032,4148.4,4146.7,0.4456]
[1760289150508,2.4110533,4147.6,4146.7,2.4115543]
[1760289150724,2.41098064,4147.7,4146.8,2.4114913]
[1760289150882,0.1033,4147.6,4145.9,0.2297]
[1760289151078,0.1033,4147.6,4145.6,1.4116]
[1760289151289,2.41146217,4146.9,4145.6,1.55276]
[1760289151492,2.41139757,4147.0,4146.2,2.41184274]
[1760289151992,2.41139757,4147.0,4145.9,2.41201676]
[1760289151993,0.1034,4148.6,4147.0,2.41133174]
[1760289152222,0.003,4149.7,4147.0,2.41133667]
[1760289152223,0.1034,4148.5,4147.0,2.41133667]
[1760289152421,2.41063687,4148.3,4145.7,2.41213509]
[1760289152721,0.1034,4148.4,4145.7,2.41213509]
[1760289152722,2.41120542,4147.4,4145.8,0.4456]
[1760289152893,2.4112215,4147.3,4146.5,2.41163054]
[1760289153095,2.41130458,4147.2,4146.4,2.41172668]
[1760289153421,2.51462396,4147.7,4146.0,2.41196333]
[1760289153722,2.41069335,4148.2,4147.4,2.41110151]
[1760289153917,1.92,4148.6,4146.8,0.4456]
[1760289154119,2.41052061,4148.5,4147.7,2.41092219]
[1760289154321,2.41068023,4148.3,4146.8,0.4456]
[1760289154621,1.92,4148.6,4147.6,2.41101929]
[1760289154821,1.92,4148.6,4146.9,2.69715083]
[1760289154822,0.003,4149.7,4147.3,0.4456]
[1760289155069,0.1037,4149.3,4146.9,0.28571096]
[1760289155228,0.003,4149.7,4146.7,2.41155617]
[1760289155521,0.003,4149.7,4149.2,17.9481816]
[1760289155724,0.2083,4152.0,4149.8,2.40969727]
[1760289156023,0.1077,4152.2,4150.0,2.40963855]
[1760289156323,2.52312361,4154.0,4150.1,0.73112386]
[1760289156324,0.1087,4152.8,4150.1,0.73112386]
[1760289156522,0.1087,4152.8,4151.3,2.40882779]
[1760289156823,0.2073,4153.1,4151.3,2.40882624]
[1760289156824,0.1097,4152.7,4151.3,2.40882624]
[1760289157024,0.1097,4152.7,4150.2,0.4456]
[1760289157202,1.92,4152.9,4150.3,0.4456]
[1760289157401,2.51786915,4152.6,4151.2,2.40893565]
[1760289157604,0.1097,4152.6,4151.3,2.40888388]
[1760289157802,0.1097,4152.6,4150.3,0.4456]
[1760289157803,2.4084135,4152.2,4150.8,2.40914438]
[1760289158021,2.40843227,4152.1,4150.9,2.40911609]
[1760289158328,2.40843227,4152.1,4149.4,1.92]
[1760289158329,0.1097,4152.0,4148.7,15.53807845]
[1760289158502,15.53807845,4152.7,4149.0,0.4456]
[1760289158503,2.40870989,4151.6,4149.0,0.4456]
[1760289158710,2.40915213,4150.9,4149.8,2.40970866]
[1760289158913,0.1107,4151.5,4149.5,2.40988258]
[1760289159233,2.40852041,4152.0,4149.0,0.4456]
[1760289159234,2.40955441,4150.2,4149.0,0.4456]
[1760289159432,2.40955441,4150.2,4149.1,2.41015754]
[1760289159634,0.25202544,4150.2,4148.5,0.4456]
[1760289159835,2.4092392,4150.7,4148.7,2.41039361]
[1760289160037,2.4092392,4150.7,4148.4,2.41052899]
[1760289160038,0.1107,4150.1,4148.3,0.965]
[1760289160243,1.92,4150.7,4148.4,0.6753]
[1760289160415,2.4093982,4150.5,4149.5,2.40988393]
[1760289160607,2.51999091,4150.6,4149.7,2.40980775]
[1760289160942,2.40905239,4151.1,4149.2,0.4456]
[1760289161116,2.40895332,4151.2,4150.0,2.40958425]
[1760289161316,1.92,4151.3,4149.2,0.4456]
[1760289161523,4.32900002,4151.1,4149.4,2.40996674]
[1760289161837,2.40959023,4150.1,4148.6,0.4456]
[1760289162136,0.1107,4150.4,4148.6,0.4456]
[1760289162615,0.1107,4150.4,4149.0,2.41018052]
[1760289162823,2.40953462,4150.2,4149.2,2.41009256]
[1760289163019,2.40953462,4150.2,4149.3,2.41004043]
[1760289163342,2.40946437,4150.3,4148.0,0.2297]
[1760289163518,0.25201644,4150.2,4148.4,0.6808]
[1760289163846,0.1107,4150.4,4148.4,0.6808]
[1760289164014,2.40986227,4149.7,4148.8,2.41032658]
[1760289164216,2.52010849,4150.4,4148.8,2.41032658]
[1760289164417,1.92,4150.8,4148.9,0.446]
[1760289164616,2.40934113,4150.6,4149.8,2.40973321]
[1760289164839,0.44400411,4150.6,4149.2,2.41005944]
[1760289165037,2.40874249,4151.6,4149.4,2.40996892]
[1760289165038,2.52004946,4150.5,4149.4,2.40996892]
[1760289165240,0.1107,4150.5,4148.7,0.446]
[1760289165548,2.40957181,4150.2,4149.3,2.40999257]
[1760289165720,2.40940632,4150.4,4149.4,2.4099811]
[1760289165721,2.40958324,4150.1,4149.4,2.4099811]
[1760289165924,2.40948694,4150.3,4149.4,2.40993658]
[1760289166225,2.40948694,4150.3,4148.4,0.2348]
[1760289166226,0.12,4150.5,4149.8,0.12]
[1760289166438,2.40951033,4150.3,4149.8,0.12]
[1760289166634,2.40940662,4150.4,4149.8,0.12]